bitfinex-derivatives/quotes_SOLF0:USTF0_20260226
["timestamp","ask_amount","ask_price","bid_price","bid_amount"]
[1772077951352,3.86841308,88.109,88.066,3.78926153]
[1772077957654,3.86841308,88.109,88.068,3.60071541]
[1772077958850,3.61923626,88.079,88.026,3.60071541]
[1772077959049,2.96568684,88.07,88.026,3.60071541]
[1772077959355,3.61923626,88.079,88.031,3.60071541]
[1772077959556,3.61923626,88.079,88.036,3.60071541]
[1772077960650,3.61923626,88.079,88.041,10.2221]
[1772077961056,3.61923626,88.069,88.024,3.60071541]
[1772077961257,3.61923626,88.069,88.011,3.60071541]
[1772077961457,3.61923626,88.069,88.031,10.2233]
[1772077961956,2.96568684,88.06,88.028,3.60071541]
[1772077962554,3.61923626,88.069,88.028,3.60071541]
[1772077963054,3.61923626,88.069,88.039,10.2223]
[1772077963360,311.97229201,88.135,88.04,3.60071541]
[1772077963361,2.96568684,88.08,88.04,3.60071541]
[1772077963560,3.61923626,88.081,88.04,3.60071541]
[1772077964861,3.61923626,88.081,88.044,10.2217]
[1772077966361,2.96568684,88.09,88.054,3.60071541]
[1772077967158,3.61923626,88.094,88.054,3.60071541]
[1772077967959,3.61923626,88.094,88.058,10.2202]
[1772077969364,3.61923626,88.094,88.054,3.60071541]
[1772077969860,3.61923626,88.094,88.056,3.60071541]
[1772077974263,3.61923626,88.094,88.06,3.60071541]
[1772077975363,3.61923626,88.118,88.06,3.60071541]
[1772077975960,3.61923626,88.118,88.063,3.76322025]
[1772077976762,3.61923626,88.118,88.06,10.2199]
[1772077977252,3.61923626,88.118,88.06,13.98312025]
[1772077978061,3.61923626,88.118,88.061,3.76322025]
[1772077979166,3.61923626,88.118,88.065,10.2193]
[1772077979369,3.61923626,88.118,88.066,3.76322025]
[1772077979661,3.61923626,88.118,88.068,10.2189]
[1772077979867,3.61923626,88.118,88.069,3.76322025]
[1772077980864,3.61923626,88.118,88.071,10.2186]
[1772077981165,3.61923626,88.118,88.072,3.76322025]
[1772077981965,3.61923626,88.118,88.03,3.76322025]
[1772077982967,3.70555844,88.115,88.053,3.76322025]
[1772077983974,3.70555844,88.112,88.053,3.76322025]
[1772077984371,3.70555844,88.112,88.056,3.76322025]
[1772077988879,3.70555844,88.112,88.06,3.76322025]
[1772077989978,3.70555844,88.112,88.062,3.76322025]
[1772077990871,3.70555844,88.112,88.069,3.76322025]
[1772077992881,3.70555844,88.112,88.071,10.2186]
[1772077993082,3.70555844,88.112,88.072,3.76322025]
[1772077993887,3.70555844,88.112,88.075,3.76322025]
[1772077994385,189.96360248,88.149,88.075,3.76322025]
[1772077994386,3.70555844,88.13,88.075,3.76322025]
[1772077995682,3.70555844,88.13,88.094,10.216]
[1772077995987,3.70555844,88.13,88.094,13.97922025]
[1772077996888,3.70555844,88.13,88.095,3.76322025]
[1772077999488,3.70555844,88.13,88.084,13.98032025]
[1772078000387,3.70555844,88.13,88.074,10.2182]
[1772078003484,3.70555844,88.128,88.071,3.76322025]
[1772078004192,3.70555844,88.126,88.071,3.76322025]
[1772078004390,3.70555844,88.126,88.06,3.76322025]
[1772078004896,3.70555844,88.113,88.06,3.76322025]
[1772078008094,3.6733857,88.111,88.06,3.76322025]
[1772078008300,3.6733857,88.111,88.044,3.73459433]
[1772078009999,3.6733857,88.1,88.044,3.73459433]
[1772078011203,3.6733857,88.098,88.044,3.73459433]
[1772078011404,3.6733857,88.098,88.032,3.73459433]
[1772078011606,3.6733857,88.098,88.008,265.62549853]
[1772078011607,3.6733857,88.098,88.035,3.73459433]
[1772078012995,3.74559266,88.11,88.048,3.65889675]
[1772078013500,3.74559266,88.121,88.048,3.65889675]
[1772078013697,3.74559266,88.121,88.066,3.65889675]
[1772078014298,3.74559266,88.121,88.07,3.65889675]
[1772078017408,3.74559266,88.121,88.072,3.65889675]
[1772078018404,3.74559266,88.121,88.075,3.65889675]
[1772078021314,3.74559266,88.121,88.065,3.65889675]
[1772078023606,3.74559266,88.121,88.064,10.2194]
[1772078023813,34.07,88.146,88.044,3.65889675]
[1772078023814,3.74559266,88.1,88.044,3.65889675]
[1772078024913,3.74559266,88.097,88.044,3.65889675]
[1772078026716,3.74559266,88.095,88.044,3.65889675]
[1772078028520,3.74559266,88.095,88.046,3.65889675]
[1772078029815,3.74559266,88.092,88.046,3.65889675]
[1772078030920,10.2153,88.1,88.049,3.65889675]
[1772078031121,3.74559266,88.099,88.049,3.65889675]
[1772078036629,3.64555651,88.096,88.049,3.65889675]
[1772078038229,3.64555651,88.094,88.049,3.65889675]
[1772078039921,10.59356283,88.128,88.049,3.65889675]
[1772078039922,3.64555651,88.091,88.049,3.65889675]
[1772078041833,8.41631852,88.111,88.049,3.65889675]
[1772078041834,3.64555651,88.087,88.049,3.65889675]
[1772078042327,3.64555651,88.087,88.029,10.2234]
[1772078042528,3.64555651,88.077,88.03,3.73023474]
[1772078043035,35.14069324,88.185,88.008,265.62549853]
[1772078043036,3.64555651,88.074,88.018,3.73023474]
[1772078043933,3.64555651,88.066,88.018,3.73023474]
[1772078044532,3.64555651,88.062,88.005,3.73023474]
[1772078045536,3.64555651,88.053,88.005,3.73023474]
[1772078047632,3.64555651,88.037,87.983,3.73023474]
[1772078047833,3.64555651,88.037,87.955,3.73023474]
[1772078049040,3.64555651,88.024,87.958,3.73023474]
[1772078050034,3.64555651,88.019,87.958,3.73023474]
[1772078050239,3.64555651,88.019,87.961,3.73023474]
[1772078051938,3.64555651,88.019,87.934,11.10833124]
[1772078051939,3.64555651,88.019,87.963,3.73023474]
[1772078052837,3.64555651,88.019,87.931,3.73023474]
[1772078053232,3.64555651,88.006,87.94,3.73023474]
[1772078053935,3.64555651,88.002,87.942,3.73023474]
[1772078054141,3.64555651,88.015,87.942,3.73023474]
[1772078054641,3.64555651,88.015,87.954,3.73023474]
[1772078056040,3.64555651,88.015,87.962,3.73023474]
[1772078057038,3.64555651,88.015,87.964,3.73023474]
[1772078061948,3.64555651,88.015,87.968,3.73023474]
[1772078064049,3.64555651,88.015,87.971,3.73023474]
[1772078065141,11.36,88.077,87.932,11.28359966]
[1772078065142,3.64555651,88.034,87.973,3.73023474]
[1772078066753,3.70370256,88.031,87.973,3.73023474]
[1772078067546,11.36,88.084,87.959,3.49649973]
[1772078067547,3.70370256,88.02,87.959,3.49649973]
[1772078068847,10.2247,88.019,87.963,10.2312]
[1772078069154,3.70370256,88.018,87.963,10.2312]
[1772078069948,3.70370256,88.018,87.963,13.72769973]
[1772078070757,3.70370256,88.016,87.963,3.49649973]
[1772078071852,10.2254,88.014,87.963,3.49649973]
[1772078072061,3.70370256,88.013,87.963,3.49649973]
[1772078079160,3.78757881,88.01,87.963,3.49649973]
[1772078085969,3.78757881,88.008,87.963,3.49649973]
[1772078086867,10.2261,88.007,87.963,3.49649973]
[1772078087065,3.78757881,88.006,87.963,3.49649973]
[1772078088064,3.78757881,88.003,87.963,3.49649973]
[1772078090065,34.07,88.028,87.963,3.49649973]
[1772078090066,3.78757881,88.001,87.963,3.49649973]
[1772078090975,3.78757881,87.999,87.944,3.68687898]
[1772078091281,302.17560898,88.041,87.944,3.68687898]
[1772078091282,3.78757881,87.997,87.944,3.68687898]
[1772078092870,3.78757881,87.99,87.944,3.68687898]
[1772078098784,3.78757881,87.99,87.942,10.2336]
[1772078098785,3.78757881,87.99,87.946,3.53505475]
[1772078099984,3.78757881,87.99,87.948,3.53505475]
[1772078100686,3.8417691,88.011,87.953,3.53505475]
[1772078101685,3.8417691,88.011,87.951,3.53505475]
[1772078102383,10.53560747,88.036,87.916,1.97808756]
[1772078102384,3.8417691,88.008,87.942,3.53505475]
[1772078102688,3.8417691,88.007,87.942,3.53505475]
[1772078102986,3.8417691,88.006,87.942,3.53505475]
[1772078103186,3.8417691,87.993,87.944,3.53505475]
[1772078103985,3.8417691,87.993,87.946,3.53505475]
[1772078104689,3.8417691,87.993,87.949,3.53505475]
[1772078104889,10.2253,88.014,87.949,3.53505475]
[1772078105085,34.07,88.028,87.949,3.53505475]
[1772078105086,3.8417691,88.013,87.949,3.53505475]
[1772078105988,3.8417691,88.013,87.962,3.53505475]
[1772078106883,3.8417691,88.013,87.944,21.06850155]
[1772078106884,3.8417691,88.013,87.967,3.53505475]
[1772078107388,3.8417691,88.013,87.969,3.53505475]
[1772078107690,3.8417691,88.026,87.969,3.53505475]
[1772078108990,3.8417691,88.026,87.974,3.53505475]
[1772078110991,3.8417691,88.026,87.976,3.53505475]
[1772078111700,3.8417691,88.026,87.897,159.2717]
[1772078111701,3.8417691,88.026,87.979,3.53505475]
[1772078112594,3.8417691,88.025,87.967,10.2307]
[1772078112786,3.8417691,88.025,87.966,3.53505475]
[1772078112991,302.17560898,88.041,87.956,3.53505475]
[1772078112992,3.8417691,88.014,87.956,3.53505475]
[1772078113795,3.8417691,88.014,87.968,3.53505475]
[1772078114099,3.8417691,88.031,87.968,3.53505475]
[1772078114903,3.8417691,88.031,87.974,3.53505475]
[1772078116101,3.8417691,88.028,87.974,3.53505475]
[1772078118799,8.42121369,88.037,87.974,3.53505475]
[1772078118800,3.8417691,88.025,87.974,3.53505475]
[1772078120100,3.8417691,88.023,87.974,3.53505475]
[1772078121897,3.8417691,88.018,87.974,3.53505475]
[1772078133014,3.8417691,88.018,87.92,20.4724]
[1772078133015,3.81078359,88.014,87.946,21.06850155]
[1772078133316,3.81078359,88.014,87.937,21.06850155]
[1772078133516,3.81078359,88.014,87.932,21.06850155]
[1772078134911,3.81078359,87.998,87.94,10.2338]
[1772078135118,3.81078359,87.998,87.941,0.50938437]
[1772078137007,3.81078359,87.998,87.943,0.52047004]
[1772078137818,3.81078359,87.998,87.945,0.52047004]
[1772078138512,3.81078359,87.998,87.947,0.52047004]
[1772078139917,3.81078359,87.998,87.954,0.57112244]
[1772078141114,3.81078359,88.011,87.957,0.57087629]
[1772078142324,3.81078359,88.011,87.974,0.57087629]
[1772078143923,3.81078359,88.011,87.976,10.2297]
[1772078149028,3.81078359,88.011,87.977,0.52435319]
[1772078157534,3.81078359,88.011,87.978,10.2294]
[1772078160424,3.81078359,88.011,87.979,0.54703813]
[1772078162437,3.81078359,88.011,87.962,10.2313]
[1772078164232,3.81078359,88.011,87.968,10.2305]
[1772078165437,3.81078359,88.011,87.968,10.76192355]
[1772078165838,3.81078359,88.011,87.969,0.53142355]
[1772078166436,3.81078359,88.011,87.971,0.53142355]
[1772078167036,3.83642147,88.033,87.972,10.2301]
[1772078167244,3.83642147,88.033,87.973,0.54239955]
[1772078169044,3.83642147,88.033,87.98,0.58688369]
[1772078169946,3.83642147,88.033,87.982,10.229]
[1772078171148,3.83642147,88.033,87.982,10.81541546]
[1772078172646,3.83642147,88.033,87.983,0.58634452]
[1772078172947,3.83642147,88.033,87.984,10.81504452]
[1772078173147,3.83642147,88.033,87.985,0.58634452]
[1772078173747,3.83642147,88.033,87.987,0.58634452]
[1772078175050,3.83642147,88.033,87.943,20.467]
[1772078175051,3.83642147,88.033,87.99,0.58794499]
[1772078175640,3.83642147,88.053,88.003,10.2265]
[1772078175844,3.83642147,88.053,88.004,0.58794499]
[1772078176443,3.83642147,88.053,87.998,10.2271]
[1772078176951,3.83642147,88.051,87.983,0.60936544]
[1772078177544,3.83642147,88.028,87.971,0.60936544]
[1772078177747,3.83642147,88.028,87.967,10.2307]
[1772078178955,3.83642147,88.026,87.959,0.60936544]
[1772078179151,3.83642147,88.026,87.957,10.2318]
[1772078179945,3.83642147,88.013,87.957,10.2318]
[1772078180555,3.83642147,88.011,87.948,0.49482903]
[1772078181248,34.07,88.046,87.948,0.49482903]
[1772078181249,3.83642147,88.007,87.948,0.49482903]
[1772078182653,3.83642147,88.002,87.948,0.49482903]
[1772078190561,3.7407613,88.0,87.948,0.49482903]
[1772078194559,3.6225073,88.014,87.954,0.51043259]
[1772078195868,3.6225073,88.014,87.97,0.51043259]
[1772078196666,3.6225073,88.014,87.915,20.4735]
[1772078196667,3.6225073,88.014,87.959,0.61612117]
[1772078197765,3.6225073,88.014,87.964,0.61612117]
[1772078198872,3.6225073,88.014,87.969,0.59491661]
[1772078201370,3.6225073,88.014,87.972,0.59489746]
[1772078202880,3.6225073,88.014,87.975,10.2298]
[1772078204880,3.6225073,88.014,87.972,0.59489746]
[1772078207179,3.6225073,88.014,87.972,10.2301]
[1772078207382,3.6225073,88.014,87.96,0.48552556]
[1772078208578,3.6225073,88.014,87.944,0.48552556]
[1772078209379,3.5798098,88.003,87.945,10.2333]
[1772078209981,3.5798098,88.003,87.945,10.8291276]
[1772078210381,3.5798098,88.003,87.946,0.5958276]
[1772078211084,3.5798098,88.003,87.947,10.233]
[1772078212480,3.5798098,88.003,87.947,10.82037468]
[1772078213181,3.5798098,88.003,87.948,0.57948792]
[1772078213379,3.5798098,88.003,87.95,10.2327]
[1772078213580,3.5798098,88.003,87.951,0.57948792]
[1772078214384,3.5798098,88.003,87.953,0.57948792]
[1772078215787,3.67579051,88.02,87.958,0.58187535]
[1772078216382,3.67579051,88.02,87.967,0.57945322]
[1772078216995,3.67579051,88.02,87.972,0.59511693]
[1772078218486,3.67579051,88.02,87.961,10.82641693]
[1772078218788,3.67579051,88.02,87.95,0.59487619]
[1772078219991,3.67579051,88.008,87.953,0.59487619]
[1772078220792,10.61145254,88.04,87.953,0.59487619]
[1772078220793,3.67579051,88.006,87.953,0.59487619]
[1772078221292,3.67579051,88.006,87.948,10.2329]
[1772078222092,3.67579051,88.006,87.948,10.81123252]
[1772078222789,3.67579051,88.004,87.948,0.57833252]
[1772078222995,3.67579051,88.004,87.938,10.234]
[1772078223898,3.67579051,88.004,87.938,10.78691542]
[1772078224097,3.67579051,88.004,87.939,0.55291542]
[1772078224799,3.67579051,87.994,87.942,0.54675638]
[1772078226292,3.67579051,87.994,87.943,0.54675638]
[1772078226698,3.67579051,87.994,87.926,0.48670714]
[1772078227396,3.67579051,87.983,87.926,0.48670714]
[1772078229001,3.67579051,87.98,87.926,0.48670714]
[1772078229396,3.67579051,87.967,87.916,0.49299604]
[1772078231706,3.67579051,87.967,87.918,0.50215287]
[1772078233605,3.67579051,87.967,87.923,0.50260446]
[1772078234808,3.67579051,87.967,87.925,10.2356]
[1772078237012,3.67579051,87.967,87.925,10.76334975]
[1772078242113,3.67579051,87.967,87.925,0.52774975]
[1772078243513,3.67579051,87.967,87.917,0.48997065]
[1772078252210,3.67579051,87.967,87.916,10.2366]
[1772078252211,3.67579051,87.967,87.92,0.49267725]
[1772078252815,10.61145254,88.011,87.907,282.45090733]
[1772078252816,3.69448835,87.965,87.91,0.48113573]
[1772078256025,3.69448835,87.962,87.907,282.45090733]
[1772078256714,3.69448835,87.962,87.9,0.50940199]
[1772078256917,3.69448835,87.958,87.9,0.50940199]
[1772078259322,3.69448835,87.955,87.9,0.50940199]
[1772078259917,3.69448835,87.953,87.9,0.50940199]
[1772078262022,3.69448835,87.951,87.9,0.50940199]
[1772078262223,3.69448835,87.951,87.89,0.48607123]
[1772078262426,3.69448835,87.951,87.88,0.48607123]
[1772078262824,3.69448835,87.937,87.88,0.48607123]
[1772078263122,3.69448835,87.937,87.882,10.72478634]
[1772078263717,3.69448835,87.937,87.889,0.48418634]
[1772078264927,3.69448835,87.937,87.893,0.55325591]
[1772078265624,3.69448835,87.937,87.882,0.55325591]
[1772078266727,3.69448835,87.937,87.883,10.2404]
[1772078267322,3.69448835,87.937,87.883,10.78223051]
[1772078267522,3.69448835,87.937,87.884,0.54183051]
[1772078267919,3.69448835,87.937,87.885,10.2403]
[1772078268118,3.69448835,87.935,87.873,0.54183051]
[1772078268631,3.69448835,87.935,87.894,10.2392]
[1772078270327,3.69448835,87.935,87.885,0.53504584]
[1772078271128,3.69448835,87.935,87.886,10.2401]
[1772078271427,3.69448835,87.935,87.887,0.53003766]
[1772078272925,3.69448835,87.935,87.89,10.2396]
[1772078273132,3.69448835,87.935,87.891,0.50461645]
[1772078275031,3.69448835,87.935,87.895,10.2391]
[1772078279939,3.69448835,87.935,87.895,10.75487792]
[1772078280235,3.69448835,87.935,87.9,10.2385]
[1772078280443,3.69448835,87.935,87.901,0.51577792]
[1772078282840,3.69448835,87.935,87.901,10.75407792]
[1772078284042,3.69448835,87.935,87.901,0.51577792]
[1772078285941,3.64645015,87.966,87.901,0.51577792]
[1772078286933,3.64645015,87.966,87.917,0.42350496]
[1772078287546,3.64645015,87.966,87.921,0.42350496]
[1772078288348,3.66646048,87.977,87.925,0.42350496]
[1772078290045,3.66646048,87.977,87.933,10.2346]
[1772078293049,3.66646048,87.977,87.925,0.42350496]
[1772078293748,3.66646048,87.977,87.926,10.2355]
[1772078293947,3.66646048,87.977,87.927,0.45883489]
[1772078295548,3.66646048,87.977,87.916,10.69385097]
[1772078297043,3.64931364,87.973,87.919,10.2363]
[1772078297242,3.64931364,87.973,87.92,0.45779864]
[1772078299044,3.64931364,87.973,87.924,0.47120827]
[1772078302451,3.64931364,87.973,87.908,0.47107518]
[1772078303952,3.64445145,87.962,87.908,0.47107518]
[1772078305454,3.64445145,87.959,87.901,10.2384]
[1772078306859,10.2318,87.958,87.901,10.2384]
[1772078307056,3.72171911,87.957,87.901,10.2384]
[1772078307758,3.72171911,87.953,87.901,10.2384]
[1772078310162,3.72171911,87.949,87.892,10.2395]
[1772078311062,3.72171911,87.947,87.894,10.75538948]
[1772078313760,3.55238042,87.945,87.894,0.51628948]
[1772078313959,3.55238042,87.945,87.885,0.66798865]
[1772078314857,10.2335,87.944,87.885,0.66798865]
[1772078315062,3.55238042,87.943,87.885,0.66798865]
[1772078315963,3.55238042,87.943,87.887,0.66599082]
[1772078316960,3.55238042,87.943,87.871,21.19658355]
[1772078316961,3.55238042,87.943,87.89,0.66599082]
[1772078318954,3.55238042,87.941,87.89,0.66599082]
[1772078322057,3.55238042,87.941,87.892,0.66389532]
[1772078327268,3.55238042,87.962,87.898,0.7682807]
[1772078328277,10.2313,87.963,87.88,21.19658355]
[1772078328278,3.55238042,87.96,87.909,0.74320984]
[1772078330272,3.55238042,87.96,87.91,10.2374]
[1772078330471,3.55238042,87.96,87.911,0.77840943]
[1772078331074,3.55238042,87.96,87.848,193.4299]
[1772078331075,3.55238042,87.96,87.913,0.77840943]
[1772078331879,3.55238042,87.96,87.925,10.99972878]
[1772078332075,3.55238042,87.96,87.925,0.76412878]
[1772078332276,3.55238042,87.96,87.887,0.76412878]
[1772078333378,3.55238042,87.96,87.888,0.76412878]
[1772078333973,3.55238042,87.96,87.907,0.79052237]
[1772078334876,3.55238042,87.96,87.91,0.79052237]
[1772078336179,3.58607712,87.958,87.909,10.2374]
[1772078337882,3.58607712,87.956,87.909,10.2374]
[1772078340479,3.58607712,87.956,87.861,20.4861]
[1772078340480,3.58607712,87.956,87.901,0.49729936]
[1772078342786,3.58607712,87.956,87.903,0.49715628]
[1772078344184,3.58607712,87.956,87.907,0.46161037]
[1772078345687,3.58607712,87.956,87.909,0.4681046]
[1772078346989,3.58607712,87.956,87.913,0.4681046]
[1772078347892,3.58607712,87.956,87.902,0.44026276]
[1772078348492,3.58607712,87.956,87.904,0.44026276]
[1772078360897,3.67233881,87.955,87.904,0.44026276]
[1772078361494,3.67233881,87.952,87.904,0.44026276]
[1772078366794,3.66177568,87.95,87.895,0.43951551]
[1772078367999,3.66212347,87.948,87.895,0.43951551]
[1772078368796,10.2331,87.947,87.895,0.43951551]
[1772078368998,3.66212347,87.946,87.895,0.43951551]
[1772078377708,3.67464277,87.944,87.895,0.43951551]
[1772078382819,3.67464277,87.944,87.898,0.38713943]
[1772078384027,3.67464277,87.944,87.903,10.2382]
[1772078385024,3.67464277,87.944,87.898,0.38713943]
[1772078402545,3.67464277,87.944,87.876,21.19658355]
[1772078402546,3.7866214,87.942,87.886,0.32915723]
[1772078403445,3.7866214,87.936,87.862,0.32915723]
[1772078403751,3.7866214,87.936,87.811,20.4978]
[1772078403752,3.7866214,87.9,87.845,0.38849855]
[1772078404043,3.7866214,87.9,87.822,21.19658355]
[1772078404241,3.7866214,87.898,87.823,0.38849855]
[1772078404444,10.60751737,87.922,87.825,0.38849855]
[1772078404445,3.7866214,87.888,87.825,0.38849855]
[1772078404948,3.7866214,87.888,87.827,0.38849855]
[1772078405451,10.60751737,87.918,87.827,0.38849855]
[1772078405452,3.7866214,87.886,87.827,0.38849855]
[1772078406447,3.7866214,87.886,87.829,0.44686296]
[1772078407947,3.7866214,87.886,87.834,0.46493907]
[1772078408142,34.13,87.919,87.794,0.46493907]
[1772078408143,3.7866214,87.871,87.794,0.46493907]
[1772078408549,3.7866214,87.871,87.821,0.46493907]
[1772078410249,3.7866214,87.871,87.81,0.42310866]
[1772078410644,3.7866214,87.869,87.81,0.42310866]
[1772078411442,3.7866214,87.867,87.798,10.67340866]
[1772078411647,3.7866214,87.867,87.798,0.42310866]
[1772078412854,3.7866214,87.864,87.798,0.42310866]
[1772078414755,3.7866214,87.864,87.8,0.47147465]
[1772078415650,3.7866214,87.864,87.802,0.44366764]
[1772078416351,3.7866214,87.901,87.802,0.44366764]
[1772078416947,11.37,87.944,87.764,159.5123]
[1772078416948,3.7866214,87.888,87.817,0.44366764]
[1772078417849,10.2409,87.881,87.817,0.44366764]
[1772078418056,3.7866214,87.88,87.818,10.2481]
[1772078418253,3.7866214,87.88,87.818,10.73848876]
[1772078418649,3.7866214,87.88,87.821,0.49038876]
[1772078419749,3.7866214,87.913,87.836,0.49782237]
[1772078419946,3.7866214,87.913,87.824,0.49782237]
[1772078420653,10.60751737,87.94,87.778,20.5055]
[1772078420654,3.7866214,87.89,87.826,0.49782237]
[1772078421456,3.7866214,87.89,87.83,0.49782237]
[1772078422251,227.48,87.959,87.846,0.49441186]
[1772078422252,34.13,87.956,87.846,0.49441186]
[1772078422549,34.13,87.954,87.846,0.49441186]
[1772078422747,34.13,87.952,87.846,0.49441186]
[1772078422951,34.13,87.95,87.846,0.49441186]
[1772078423148,34.13,87.948,87.846,0.49441186]
[1772078423347,34.13,87.946,87.849,3.77539338]
[1772078423549,34.13,87.944,87.849,3.77539338]
[1772078423750,34.13,87.942,87.849,3.77539338]
[1772078424051,10.2373,87.911,87.849,3.77539338]
[1772078424256,3.7866214,87.91,87.849,3.77539338]
[1772078425058,3.7866214,87.905,87.849,3.77539338]
[1772078425458,3.7866214,87.905,87.851,3.77539338]
[1772078426160,3.63943883,87.918,87.862,3.59165815]
[1772078427253,3.63943883,87.918,87.817,21.19658355]
[1772078427254,3.63943883,87.918,87.869,3.59165815]
[1772078432364,3.63943883,87.931,87.871,3.59165815]
[1772078432757,3.63943883,87.931,87.873,3.59165815]
[1772078433157,3.58798895,87.945,87.873,3.59165815]
[1772078433360,3.58798895,87.945,87.896,3.86709388]
[1772078434865,3.58798895,87.945,87.883,3.86709388]
[1772078435561,3.58798895,87.945,87.834,20.4925]
[1772078435562,3.58798895,87.945,87.894,3.86709388]
[1772078436756,3.58798895,87.945,87.896,3.86709388]
[1772078437165,3.58798895,87.963,87.896,3.86709388]
[1772078437867,3.58798895,87.963,87.9,10.2385]
[1772078438163,3.58798895,87.963,87.901,3.86709388]
[1772078438368,3.58798895,87.959,87.901,3.86709388]
[1772078439869,3.58798895,87.959,87.905,3.86709388]
[1772078441473,3.58798895,87.959,87.843,3.86709388]
[1772078442964,3.58798895,87.947,87.887,3.86709388]
[1772078444170,159.07,88.009,87.819,175.0]
[1772078444171,3.58798895,87.935,87.878,3.86709388]
[1772078444868,10.2347,87.934,87.878,3.86709388]
[1772078445071,10.2347,87.934,87.833,21.19658355]
[1772078445072,3.58798895,87.933,87.88,3.86709388]
[1772078445873,3.58798895,87.933,87.882,3.86709388]
[1772078448276,3.58798895,87.933,87.884,3.86709388]
[1772078451180,3.58798895,87.933,87.888,3.86709388]
[1772078451381,3.58798895,87.945,87.888,3.86709388]
[1772078451781,3.58798895,87.959,87.91,3.86709388]
[1772078452877,3.58798895,87.959,87.859,20.4866]
[1772078452878,3.58798895,87.959,87.912,3.86709388]
[1772078454079,3.58798895,87.956,87.912,3.86709388]
[1772078454386,3.58798895,87.956,87.902,10.2383]
[1772078454783,3.58798895,87.956,87.903,3.86709388]
[1772078455182,3.58798895,87.954,87.903,3.86709388]
[1772078457288,3.58798895,87.954,87.859,20.4866]
[1772078457289,3.58798895,87.954,87.906,3.87869832]
[1772078457483,3.74546395,87.967,87.906,3.87869832]
[1772078457982,3.74546395,88.001,87.906,3.87869832]
[1772078458878,3.74546395,87.984,87.926,3.87869832]
[1772078459489,3.74546395,87.984,87.887,21.19658355]
[1772078459490,3.74546395,87.984,87.932,3.87869832]
[1772078461185,3.74546395,87.981,87.901,3.87869832]
[1772078461488,20.451,88.013,87.901,3.87869832]
[1772078461489,3.74546395,87.965,87.901,3.87869832]
[1772078462283,3.74546395,87.978,87.905,3.87869832]
[1772078463985,3.74546395,87.978,87.936,3.87869832]
[1772078465289,3.74546395,87.978,87.925,10.2356]
[1772078465690,3.74546395,87.975,87.924,3.87869832]
[1772078465888,3.74546395,87.975,87.914,10.2369]
[1772078466890,14.1340371,88.024,87.875,21.19658355]
[1772078466891,3.74546395,88.011,87.917,3.87869832]
[1772078467090,3.74546395,88.01,87.917,3.87869832]
[1772078467892,3.74546395,87.992,87.93,3.87869832]
[1772078469091,3.74546395,87.992,87.932,3.87869832]
[1772078471990,3.74546395,87.992,87.934,3.87869832]
[1772078473097,3.74546395,87.99,87.934,3.87869832]
[1772078473791,3.74546395,87.99,87.936,3.87869832]
[1772078474994,3.74546395,87.99,87.938,3.87869832]
[1772078476600,3.74546395,87.99,87.882,20.4813]
[1772078476601,3.74546395,87.99,87.94,14.11259832]
[1772078477097,3.74546395,87.99,87.941,3.87869832]
[1772078478303,3.74546395,88.019,87.961,3.87869832]
[1772078478494,3.74546395,88.019,87.906,20.4757]
[1772078478495,3.74546395,88.019,87.913,3.87869832]
[1772078479401,3.74546395,88.005,87.903,3.87869832]
[1772078480198,10.60751737,88.034,87.925,3.87869832]
[1772078480199,3.74546395,87.983,87.925,3.87869832]
[1772078481701,3.74546395,87.981,87.925,3.87869832]
[1772078482901,3.74546395,87.975,87.925,3.87869832]
[1772078483503,3.74546395,87.97,87.912,3.87869832]
[1772078483903,3.74546395,87.97,87.902,14.11689832]
[1772078484206,3.74546395,87.97,87.903,3.87869832]
[1772078484504,3.74546395,87.964,87.907,3.87869832]
[1772078485608,3.74546395,87.962,87.907,3.87869832]
[1772078486202,3.70374249,87.958,87.907,3.87869832]
[1772078486407,3.70374249,87.958,87.895,3.72862211]
[1772078486903,3.70374249,87.944,87.882,3.72862211]
[1772078488103,3.70374249,87.94,87.882,3.72862211]
[1772078488714,3.70374249,87.94,87.884,3.72862211]
[1772078490108,3.70374249,87.94,87.886,3.72862211]
[1772078490910,34.13,87.974,87.827,159.3982]
[1772078490911,3.70374249,87.964,87.902,3.72862211]
[1772078491707,3.70374249,87.964,87.917,3.72862211]
[1772078492011,3.70374249,87.976,87.917,3.72862211]
[1772078493001,10.2285,87.987,87.919,3.50416474]
[1772078493206,3.62164322,87.991,87.919,3.50416474]
[1772078493908,3.62164322,87.988,87.919,3.50416474]
[1772078494115,3.62164322,87.988,87.87,3.50416474]
[1772078494611,3.62164322,87.966,87.906,3.50416474]
[1772078494813,3.62164322,88.008,87.906,3.50416474]
[1772078495011,3.62164322,88.006,87.906,3.50416474]
[1772078495213,3.62164322,88.005,87.906,3.50416474]
[1772078495414,3.62164322,88.004,87.906,3.50416474]
[1772078495718,3.62164322,87.985,87.927,3.50416474]
[1772078496807,3.62164322,87.985,87.889,21.19658355]
[1772078496808,3.62164322,87.996,87.93,3.50416474]
[1772078497414,3.62164322,88.017,87.958,3.50416474]